Cogmind - Beta 14 @@@ ROGUE MODE // 2024.08.10 @ 19:23:30 Player: Wesmed Result: Destroyed by VR-UOJ(R) with Subdweller Laser Performance ------------- Evolutions (0) 0 Regions Visited (2) 400 Robots Destroyed (22) 110 Value Destroyed (449) 449 Prototype IDs (11) 220 Alien Tech Used (0) 0 Bonus (0) 0 TOTAL SCORE: 1179 Bonus ------- None Cogmind --------- Core Integrity 0/250 Matter 284/300 Energy 160/200 System Corruption 2% Temperature Cool (64) Movement Rolling (170) Ox6 Location -10/Subcaves Parts ------- > --- POWER (1+1) ------ Subdweller Power Source > --- PROPULSION (2+1) - Wheel Subdweller Monowheel (fused) > --- UTILITY (2+1) ---- High-capacity Storage Unit Rainbow Chip > --- WEAPON (2+1) ----- Subdweller Beam Cannon Subdweller Beam Cannon > --- INVENTORY (20) --- Ion Engine Subdweller Power Source Subdweller Power Source Subdweller Monowheel Subdweller Monowheel Subdweller Monowheel Disposable Heat Sink Subdweller Optics Subdweller Optics Subdweller Optics Subdweller Laser Subdweller Beam Cannon Subdweller Beam Cannon Subdweller Machine Gun Subdweller Machine Gun Barrage Gun Subdweller Shrapnel Launcher Dirty Datajack (20) Peak State ------------ > --- POWER ------------ Subdweller Power Source > --- PROPULSION ------- Wheel Subdweller Monowheel > --- UTILITY ---------- High-capacity Storage Unit Rainbow Chip > --- WEAPON ----------- Subdweller Beam Cannon Subdweller Shrapnel Launcher > --- INVENTORY -------- Ion Engine Subdweller Power Source Subdweller Power Source Subdweller Monowheel Subdweller Monowheel Subdweller Monowheel Disposable Heat Sink Subdweller Optics Subdweller Optics Subdweller Laser Subdweller Beam Cannon Subdweller Beam Cannon Subdweller Beam Cannon Subdweller Machine Gun Subdweller Machine Gun Barrage Gun Dirty Datajack Scrap Shield Fragment Scrap Shield Fragment Scrap Shield Fragment [Rating: 27] Favorites ----------- Power Subdweller Power Source Engine Subdweller Power Source Propulsion Wheel Wheel Wheel Utility High-capacity Storage Unit Device Improved Terrain Scanner Storage High-capacity Storage Unit Processor Rainbow Chip Weapon Subdweller Beam Cannon Energy Cannon Subdweller Beam Cannon Ballistic Gun Subdweller Machine Gun Launcher Subdweller Shrapnel Launcher Special Weapon Mining Laser Build | -11 -10 -10 ------- Run | Yrd Mat Sub Slots Evolved . | . . . Power . | . . . Propulsion . | . . . Utility . | . . . Weapon . | . . . Parts Attached 34 | 8 4 22 Power 3 | 1 1 1 Engine 3 | 1 1 1 Core . | . . . Reactor . | . . . Propulsion 6 | 3 1 2 Treads . | . . . Leg . | . . . Wheel 6 | 3 1 2 Hover . | . . . Flight . | . . . Utility 8 | 2 2 4 Device 4 | 1 . 3 Storage 3 | 1 2 . Processor 1 | . . 1 Hackware . | . . . Protection . | . . . Artifact . | . . . Weapon 17 | 2 . 15 Energy Gun . | . . . Energy Cannon 6 | . . 6 Ballistic Gun 7 | 2 . 5 Ballistic Cannon . | . . . Launcher 1 | . . 1 Special Weapon 3 | . . 3 Impact Weapon . | . . . Slashing Weapon . | . . . Piercing Weapon . | . . . Special Melee Weapon . | . . . Unidentified Prototypes . | . . . Parts Lost 6 | . 1 5 Power 1 | . 1 . Propulsion 1 | . . 1 Utility 1 | . . 1 Weapon 3 | . . 3 Highest Loss Streak 2 | . 1 2 To Critical Strikes . | . . . Average Slot Usage (%) 89 | . 97 87 Engine 13 | . 12 13 Wheel 26 | . 28 26 Device 7 | . 14 5 Storage 13 | . 14 13 Energy Cannon 10 | . . 12 Ballistic Gun 12 | . 28 8 Launcher 2 | . . 2 Special Weapon 1 | . . 2 Peak Build Rating 27 | 9 10 27 Average Rating 13 | 4 9 15 On Entrance 6 | . 9 10 Naked Turns . | . . . Heaviest Build 63 | 12 47 63 Greatest Support 20 | 20 20 20 Greatest Overweight (x) 6 | . 2 6 Average Overweight (x) 3 | . 1 4 Largest Inventory Capacity 20 | 8 20 20 Average Capacity 19 | 7 18 20 Most Carried 20 | 7 10 20 Average Carried 16 | 3 9 18 Final Capacity 20 | 8 20 20 Final Carried 18 | 7 10 18 Class Distribution -------------------- 55% | Scavenger-Mutant 44% | Mutant Dominant Class ---------------- Mutant | -10/Materials Scavenger-Mutant | -10/Subcaves Resources | -11 -10 -10 ----------- Run | Yrd Mat Sub Matter Collected 873 | 324 135 414 Remotely . | . . . Salvage Created 605 | 107 203 295 Parts 48 | 11 9 28 Haulers Intercepted 1 | . 1 . Recyclers Shooed . | . . . Parts Field Recycled . | . . . Retrieved Matter . | . . . Parts Self-Destructed 18 | . . 18 Prevented . | . . . Kills | -11 -10 -10 ------- Run | Yrd Mat Sub Combat Hostiles Destroyed 16 | . 6 10 Guns 8 | . 6 2 Cannons 6 | . . 6 AOE 2 | . . 2 Classes Destroyed 5 | 1 3 1 Tunneler 5 | 5 . . Hauler 1 | . 1 . Swarmer 7 | . 3 4 Grunt 3 | . 3 . Subdweller 6 | . . 6 Best Kill Streak 3 | 3 3 3 Combat Bots Only 3 | . 3 3 Max Kills in Single Turn 1 | 1 1 1 Gunslinging . | . . . Exploded 1 | . . 1 Melee . | . . . Uniques/NPCs Destroyed . | . . . Combat | -11 -10 -10 -------- Run | Yrd Mat Sub Hostile Shots Fired 95 | . 32 63 Missed 29 | . 6 23 Damage Taken 939 | . 232 707 Core 265 | . 56 209 Absorbed by Shields . | . . . Core Remaining (%) 100 | 100 . . Volleys Fired 98 | 11 25 62 Largest 2 | 2 2 2 Hottest 160 | 40 40 160 Shots Fired 158 | 22 50 86 Gun 95 | 22 50 23 Cannon 48 | . . 48 Launcher 6 | . . 6 Special 9 | . . 9 Kinetic 101 | 22 50 29 Thermal 57 | . . 57 Explosive . | . . . Electromagnetic . | . . . Robot Hit Streak 8 | 4 7 8 Robot Miss Streak 3 | 3 3 1 Penetration Max . | . . . Secondary Targets . | . . . Shots Hit Robots 73 | 9 31 33 Core Hits 32 | 6 12 14 Critical Kills . | . . . Critical Parts Destroyed . | . . . Critical Strikes . | . . . Melee Attacks . | . . . Impact . | . . . Slashing . | . . . Piercing . | . . . Sneak Attacks . | . . . Combat Hostiles . | . . . Follow-up Attacks . | . . . Damage Inflicted 1108 | 109 323 676 Guns 633 | 109 323 201 Cannons 348 | . . 348 Explosions 127 | . . 127 Melee . | . . . Ramming . | . . . Kinetic 760 | 109 323 328 Thermal 348 | . . 348 Explosive . | . . . Electromagnetic . | . . . Impact . | . . . Slashing . | . . . Piercing . | . . . Highest Corruption 2 | . 2 2 Average Corruption 1 | . 1 2 Corruption Purged . | . . . Corruption Blocked . | . . . Effects 37 | . 6 31 Message Errors 9 | . 1 8 Matter Fused 12 | . 1 11 Heat Flow Errors 3 | . 1 2 Energy Discharges 4 | . 2 2 Parts Fused 1 | . . 1 Data Loss (minor) 5 | . 1 4 Data Loss (major) 1 | . . 1 Misfires 1 | . . 1 Weapon Failures 1 | . . 1 Overload Shots . | . . . Overflow Damage . | . . . Projectiles . | . . . Explosions . | . . . Melee . | . . . Knockbacks . | . . . Impact . | . . . Kinetic . | . . . Secondary . | . . . Self-Inflicted Damage . | . . . Shots . | . . . Rammed . | . . . Targets Rammed . | . . . Kicked . | . . . Crushed . | . . . Highest Temperature 246 | . 246 227 Average Temperature 78 | . 81 76 Received Heat Transfer 126 | . 60 66 Siege Activations . | . . . Robots Corrupted . | . . . Combat Hostiles . | . . . Parts Fried . | . . . Impact Corruptions . | . . . Robots Melted . | . . . Combat Hostiles . | . . . Parts Melted 1 | . . 1 Heat Transferred 592 | . . 592 Parts Sabotaged . | . . . Parts Stolen . | . . . Parts Stripped . | . . . Power Chain Reactions . | . . . Alert | -11 -10 -10 ------- Run | Yrd Mat Sub Peak Influence 151 | 25 151 . Initial 16 | . 16 . Average 46 | 6 58 . Maximum Alert Level . | . . . Low Security (%) 100 | 100 100 . Level 1 . | . . . Level 2 . | . . . Level 3 . | . . . Level 4 . | . . . Level 5 . | . . . High Security . | . . . Max Security . | . . . Squads Dispatched 2 | . 2 . Investigation 1 | . 1 . Extermination . | . . . Reinforcement 1 | . 1 . Assault . | . . . Garrison . | . . . Intercept . | . . . Searches Triggered . | . . . Construction Impeded . | . . . Haulers Reinforced . | . . . Active Scanning Responses . | . . . Cargo Convoy Interrupts . | . . . Stealth | -11 -10 -10 --------- Run | Yrd Mat Sub Distress Signals . | . . . Communications Jammed . | . . . Distress Signals . | . . . Times Spotted 22 | . 11 11 Peak Tracking Total 4 | . 4 3 Tactical Retreats . | . . . Traps | -11 -10 -10 ------- Run | Yrd Mat Sub Traps Triggered 3 | . 2 1 Indirectly . | . . . Trap Hack Attempts . | . . . Triggered . | . . . Disarmed . | . . . Reprogrammed . | . . . Reused . | . . . Traps Extracted . | . . . Installed . | . . . Triggered 3 | . . 3 Machines | -11 -10 -10 ---------- Run | Yrd Mat Sub Machines Disabled 1 | . . 1 Max in Single Turn 1 | . . 1 Machines Repaired . | . . . Machines Dismantled . | . . . Machines Sabotaged . | . . . Overloaded Fab Kills . | . . . Hacking | -11 -10 -10 --------- Run | Yrd Mat Sub Machines Accessed 6 | . 5 1 Terminals 4 | . 4 . Fabricators . | . . . Repair Stations . | . . . Recycling Units 1 | . 1 . Scanalyzers . | . . . Garrison Access . | . . . Total Hacks 11 | . 10 1 Successful 5 | . 4 1 Failed 6 | . 6 . Catastrophic 1 | . 1 . Database Lockouts . | . . . Manual 10 | . 10 . Terminals 9 | . 9 . Fabricators . | . . . Repair Stations . | . . . Recycling Units 1 | . 1 . Scanalyzers . | . . . Garrison Access . | . . . Terminal Hacks 1 | . . 1 Derelict Proto ID Bank 1 | . . 1 Fabricator Hacks . | . . . Repair Station Hacks . | . . . Recycling Unit Hacks . | . . . Scanalyzer . | . . . Garrison Access Hacks . | . . . Unauthorized Hacks 4 | . 4 . Terminals 3 | . 3 . Botnet 3 | . 3 . Fabricators . | . . . Repair Stations . | . . . Recycling Units 1 | . 1 . Tunnel 1 | . 1 . Scanalyzers . | . . . Garrison Access . | . . . Data Cores Recovered . | . . . Used . | . . . Hacking Detections 3 | . 3 . Full Trace Events 1 | . 1 . Feedback Events . | . . . Feedback Blocked . | . . . Robot Schematics Acquired . | . . . Robots Built . | . . . Authchips . | . . . Time . | . . . Total Robot Build Rating . | . . . Part Schematics Acquired . | . . . Parts Built . | . . . Authchips . | . . . Time . | . . . Total Part Build Rating . | . . . Parts Repaired . | . . . Time . | . . . Parts Recycled . | . . . Recycled Matter . | . . . Retrieved Matter . | . . . Retrieved Components . | . . . Parts Scanalyzed . | . . . Part Schematics Acquired . | . . . Parts Damaged . | . . . Bothacking | -11 -10 -10 ------------ Run | Yrd Mat Sub Used RIF Installer . | . . . Robots Hacked . | . . . Non-combat . | . . . Combat . | . . . Robot Hacks Applied . | . . . Relay Couplers Released . | . . . Fabnet Peak Effective % . | . . . Robots Rewired . | . . . Allies Hacked . | . . . Hacks Repelled . | . . . Allies | -11 -10 -10 -------- Run | Yrd Mat Sub Total Allies . | . . . Largest Group . | . . . Highest-Rated Group . | . . . Highest-Rated Ally . | . . . Total Orders . | . . . Ally Attacks . | . . . Total Damage . | . . . Kills . | . . . Allies Corrupted . | . . . Allies Melted . | . . . Intel | -11 -10 -10 ------- Run | Yrd Mat Sub Robot Analysis Total . | . . . Derelict Logs Recovered 1 | . . 1 Drone Launches . | . . . Drone Recoveries . | . . . Exploration | -11 -10 -10 ------------- Run | Yrd Mat Sub Turns Passed 3054 | 151 501 2402 Spaces Moved 1896 | 117 327 1452 Core 2 | 2 . . Treads . | . . . Legs . | . . . Wheels 1894 | 115 327 1452 Hover . | . . . Flight . | . . . Fastest Speed 50 | 50 80 110 Average Speed 135 | 79 99 147 Slowest Speed 170 | 80 110 170 Overloaded Moves . | . . . Propulsion Burnouts . | . . . Robots Hopped . | . . . Cave-ins Triggered . | . . . Exploration Rate (%) 32 | 6 26 64 Regions Visited 2 Branch Regions 1 Pre-discovered Areas 2 | . 1 1 Known Exits Taken . | . . . Unknown Exits Taken 2 | 1 1 . Scrap Searched 3 | . . 3 Spaces Dug 22 | . . 22 Terrain Destroyed 79 | . . 79 Melee . | . . . Projectile 9 | . . 9 AOE 70 | . . 70 Terrain Rammed . | . . . Walls Destroyed . | . . . Machines Disabled . | . . . Actions | -11 -10 -10 --------- Run | Yrd Mat Sub Total 2218 | 153 456 1609 Wait 135 | . 97 38 Move 1894 | 116 326 1452 Hop . | . . . Pick Up 35 | 12 2 21 Fast Attach 10 | 7 1 2 Attach 5 | . . 5 Detach . | . . . Swap 19 | 1 3 15 Drop 22 | 6 2 14 Fire 98 | 11 25 62 Melee . | . . . Ram . | . . . Kick . | . . . Crush . | . . . Escape Stasis . | . . . Rewire . | . . . Trap . | . . . Miscellaneous . | . . . Route ------- -11/Scrapyard -10/Materials (discovered 2 exits: [*Mat] / *Sub) -10/Subcaves (discovered 2 exits: [*Mat x2]) History --------- Turn | Location | Event 13 | -11/Scrapyard | Discovered new exit (range 15) 152 | -11/Scrapyard | Entered Materials 229 | -10/Materials | Discovered new exit (range 12) 305 | -10/Materials | Build established: Mutant 580 | -10/Materials | Discovered new exit (range 7) 653 | -10/Materials | Entered Subcaves 851 | -10/Subcaves | Shifting Twisted Machinery released Sub. Laser 863 | -10/Subcaves | Shifting Twisted Machinery released Sub. Beam Cannon 974 | -10/Subcaves | Shifting Twisted Machinery released Shrapnel Trap 986 | -10/Subcaves | Shifting Twisted Machinery released Sub. Power Source 1040 | -10/Subcaves | Learned location of Storage (-9) 1115 | -10/Subcaves | Core integrity fell below 50% 1585 | -10/Subcaves | Build established: Scavenger-Mutant 2363 | -10/Subcaves | A swath of the cavern ceiling suddenly collapsed 2402 | -10/Subcaves | Shifting Twisted Machinery released Sub. Machine Gun 2417 | -10/Subcaves | Shifting Twisted Machinery released Barrage Gun 2445 | -10/Subcaves | Core integrity fell below 20% 2555 | -10/Subcaves | Discovered new exit (range 12) 2591 | -10/Subcaves | A swath of the cavern ceiling suddenly collapsed 2712 | -10/Subcaves | Visited 4L-MR0's lab 2732 | -10/Subcaves | Found Rainbow Chip 2734 | -10/Subcaves | Attached Rainbow Chip, gained temporary slots: Power, Propulsion, Utility, Weapon 2940 | -10/Subcaves | Ambushed by Subdweller buried in earth 3012 | -10/Subcaves | Discovered new exit (range 12) 3055 | -10/Subcaves | Destroyed by VR-UOJ(R) with Subdweller Laser Last Messages --------------- 02783_ Sub. Beam Cannon shoots sparks and powers down. 02878_ System corrupted: Component data lost. 02899_ Acquired 9 matter. 02904_ Acquired 10 matter. 02906_ Acquired 6 matter. 02941_ SJ-OCU(R): "ARGHSUB!" 02942_ SJ-OCU(R) destroyed. 02961_ Acquired 31 matter. 02983_ LX>#JSVF1>MXIR